fUST/lending_fUST_20250226
["ID","MTS","AMOUNT","RATE_DAILY","PERIOD"]
[354455354,1740514247487,-151.0,0.000401,14]
[354455355,1740514247497,-151.0,0.000401,14]
[354455356,1740514247507,-151.0,0.000401,14]
[354455357,1740514247516,-151.0,0.000401,14]
[354455358,1740514247525,-151.0,0.000401,14]
[354455359,1740514247534,-151.0,0.000401,14]
[354455360,1740514247544,-151.0,0.000401,14]
[354455361,1740514247553,-151.0,0.000401,14]
[354455362,1740514247563,-234.995626,0.000401,14]
[354455363,1740514247573,-234.995626,0.000401,14]
[354455364,1740514247582,-151.0,0.000401,14]
[354455365,1740514247592,-151.0,0.000401,14]
[354455366,1740514247601,-151.0,0.000401,14]
[354455367,1740514247611,-151.0,0.000401,14]
[354455368,1740514247620,-184.268149,0.000401,14]
[354455369,1740514247630,-151.0,0.000401,14]
[354455370,1740514247639,-224.815332,0.000401,14]
[354455371,1740514247649,-224.815332,0.000401,14]
[354455372,1740514247659,-151.0,0.000401,14]
[354455373,1740514247668,-151.0,0.000401,14]
[354455374,1740514247678,-1309.055558,0.000401,14]
[354455375,1740514247687,-151.0,0.000401,14]
[354455376,1740514247696,-1309.055558,0.000401,14]
[354455377,1740514247706,-151.0,0.000401,14]
[354455378,1740514247715,-151.0,0.000401,14]
[354455379,1740514247724,-500.0,0.00040123,35]
[354455380,1740514247739,-1000.0,0.000402,90]
[354455381,1740514247748,-500.0,0.00040223,112]
[354455382,1740514247758,-247.80084234,0.00040245,8]
[354455383,1740514247768,-500.0,0.00040273,44]
[354455384,1740514247777,-1000.0,0.000403,90]
[354455385,1740514247787,-500.0,0.00040423,61]
[354455386,1740514247796,-500.0,0.00040523,119]
[354455387,1740514247805,-500.0,0.00040547,46]
[354455388,1740514247815,-1000.0,0.00040703,2]
[354455389,1740514247824,-500.0,0.00040723,24]
[354455390,1740514247833,-500.0,0.00040821,48]
[354455391,1740514247842,-500.0,0.00040823,47]
[354455392,1740514247852,-1000.0,0.0004084,2]
[354455393,1740514247862,-1000.0,0.0004086,2]
[354455394,1740514247871,-152.58021793,0.00040868,2]
[354455395,1740514247881,-267.71493481,0.0004087,2]
[354455396,1740514247890,-1000.0,0.0004087,2]
[354455397,1740514247901,-1381.25454253,0.0004089,4]
[354455398,1740514247911,-5000.0,0.000409,120]
[354455399,1740514247921,-16000.0,0.000409,30]
[354455400,1740514247930,-1000.0,0.000409,120]
[354455401,1740514247939,-3000.0,0.000409,2]
[354455402,1740514247949,-151.0,0.000409,14]
[354455403,1740514247958,-151.0,0.000409,14]
[354455404,1740514247967,-151.0,0.000409,14]
[354455405,1740514247976,-181.273902,0.000409,3]
[354455406,1740514247985,-151.0,0.000409,14]
[354455407,1740514247994,-151.0,0.000409,14]
[354455408,1740514248004,-151.0,0.000409,14]
[354455409,1740514248018,-151.0,0.000409,14]
[354455410,1740514248027,-151.0,0.000409,14]
[354455411,1740514248037,-151.0,0.000409,14]
[354455412,1740514248047,-151.0,0.000409,14]
[354455413,1740514248057,-151.0,0.000409,14]
[354455414,1740514248067,-183.920828,0.000409,14]
[354455415,1740514248078,-151.0,0.000409,14]
[354455416,1740514248087,-151.0,0.000409,14]
[354455417,1740514248281,-151.0,0.000409,14]
[354455418,1740514248292,-234.995626,0.000409,14]
[354455419,1740514248302,-234.995626,0.000409,14]
[354455420,1740514248312,-151.0,0.000409,14]
[354455421,1740514248323,-151.0,0.000409,14]
[354455422,1740514248333,-151.0,0.000409,14]
[354455423,1740514248343,-151.0,0.000409,14]
[354455424,1740514248353,-151.0,0.000409,14]
[354455425,1740514248363,-224.815332,0.000409,14]
[354455426,1740514248373,-224.815332,0.000409,14]
[354455427,1740514248382,-151.0,0.000409,14]
[354455428,1740514248393,-151.0,0.000409,14]
[354455429,1740514248405,-1309.055558,0.000409,14]
[354455430,1740514248416,-151.0,0.000409,14]
[354455431,1740514248427,-1309.055558,0.000409,14]
[354455432,1740514248438,-151.0,0.000409,14]
[354455433,1740514248448,-151.0,0.000409,14]
[354455434,1740514248459,-500.0,0.00040923,118]
[354455435,1740514248469,-1000.0,0.00040944,30]
[354455436,1740514248480,-151.0,0.00040958,14]
[354455437,1740514248490,-151.0,0.00040958,14]
[354455438,1740514248500,-151.0,0.00040958,14]
[354455439,1740514248510,-151.0,0.00040958,14]
[354455440,1740514248519,-300.867417,0.00040958,14]
[354455441,1740514248529,-1381.25454253,0.00040958,4]
[354455442,1740514248538,-1000.0,0.00040959,2]
[354455443,1740514248547,-151.0,0.00040968,14]
[354455444,1740514248557,-151.0,0.00040968,14]
[354455445,1740514248567,-151.0,0.00040968,14]
[354455446,1740514248577,-151.0,0.00040968,14]
[354455447,1740514248587,-195.96,0.00040968,14]
[354455448,1740514248598,-151.0,0.00040968,14]
[354455449,1740514248608,-151.0,0.00040968,14]
[354455450,1740514248618,-151.0,0.00040968,14]
[354455451,1740514248628,-151.0,0.00040968,14]
[354455452,1740514248637,-151.0,0.00040968,14]
[354455453,1740514248647,-151.0,0.00040968,14]
[354455454,1740514248658,-151.0,0.00040968,14]
[354455455,1740514248668,-151.0,0.00040968,14]
[354455456,1740514248678,-151.0,0.00040968,14]
[354455457,1740514248688,-151.0,0.00040968,14]
[354455458,1740514248698,-234.995626,0.00040968,14]
[354455459,1740514248708,-234.995626,0.00040968,14]
[354455460,1740514248718,-234.995626,0.00040968,14]
[354455461,1740514248728,-234.995626,0.00040968,14]
[354455462,1740514248738,-151.0,0.00040968,14]
[354455463,1740514248747,-151.0,0.00040968,14]
[354455464,1740514248758,-151.0,0.00040968,14]
[354455465,1740514248767,-151.0,0.00040968,14]
[354455466,1740514248777,-151.0,0.00040968,14]
[354455467,1740514248787,-151.0,0.00040968,14]
[354455468,1740514248796,-151.0,0.00040968,14]
[354455469,1740514248806,-151.0,0.00040968,14]
[354455470,1740514248816,-151.0,0.00040968,14]
[354455471,1740514248826,-151.0,0.00040968,14]
[354455472,1740514248836,-224.815332,0.00040968,14]
[354455473,1740514248846,-224.815332,0.00040968,14]
[354455474,1740514248855,-224.815332,0.00040968,14]
[354455475,1740514248865,-224.815332,0.00040968,14]
[354455476,1740514248875,-151.0,0.00040968,14]
[354455477,1740514248885,-151.0,0.00040968,14]
[354455478,1740514248896,-151.0,0.00040968,14]
[354455479,1740514248908,-151.0,0.00040968,14]
[354455480,1740514248918,-1309.055558,0.00040968,14]
[354455481,1740514248928,-1309.055558,0.00040968,14]
[354455482,1740514248937,-1309.055558,0.00040968,14]
[354455483,1740514248948,-1309.055558,0.00040968,14]
[354455484,1740514248958,-151.0,0.00040968,14]
[354455485,1740514248968,-283.348472,0.00040968,14]
[354455486,1740514248978,-151.0,0.00040968,14]
[354455487,1740514248989,-166.0,0.00040968,14]
[354455488,1740514248999,-166.0,0.00040968,14]
[354455489,1740514249009,-166.0,0.00040968,14]
[354455490,1740514249019,-166.0,0.00040968,14]
[354455491,1740514249029,-167.0,0.00040968,14]
[354455492,1740514249040,-167.0,0.00040968,14]
[354455493,1740514249050,-349.0,0.00040968,14]
[354455494,1740514249060,-349.0,0.00040968,14]
[354455495,1740514249071,-349.0,0.00040968,14]
[354455496,1740514249082,-315.0,0.00040968,14]
[354455497,1740514249092,-349.0,0.00040968,14]
[354455498,1740514249102,-315.0,0.00040968,14]
[354455499,1740514249112,-349.0,0.00040968,14]
[354455500,1740514249122,-315.0,0.00040968,14]
[354455501,1740514249132,-349.0,0.00040968,14]
[354455502,1740514249145,-315.0,0.00040968,14]
[354455503,1740514249158,-349.0,0.00040968,14]
[354455504,1740514249169,-349.0,0.00040968,14]
[354455505,1740514249179,-315.0,0.00040968,14]
[354455506,1740514249189,-349.0,0.00040968,14]
[354455507,1740514249201,-315.0,0.00040968,14]
[354455508,1740514249211,-349.0,0.00040968,14]
[354455509,1740514249222,-315.0,0.00040968,14]
[354455510,1740514249233,-349.0,0.00040968,14]
[354455511,1740514249244,-315.0,0.00040968,14]
[354455512,1740514249254,-349.0,0.00040968,14]
[354455513,1740514249264,-315.0,0.00040968,14]
[354455514,1740514249275,-349.0,0.00040968,14]
[354455515,1740514249301,-315.0,0.00040968,14]
[354455516,1740514249351,-349.0,0.00040968,14]
[354455517,1740514249401,-349.0,0.00040968,14]
[354455518,1740514249457,-315.0,0.00040968,14]
[354455519,1740514249492,-315.0,0.00040968,14]
[354455520,1740514249504,-315.0,0.00040968,14]
[354455521,1740514249515,-315.0,0.00040968,14]
[354455522,1740514249525,-315.0,0.00040968,14]
[354455523,1740514249536,-315.0,0.00040968,14]
[354455524,1740514249546,-349.0,0.00040968,14]
[354455525,1740514249555,-315.0,0.00040968,14]
[354455526,1740514249565,-349.0,0.00040968,14]
[354455527,1740514249574,-315.0,0.00040968,14]
[354455528,1740514249584,-349.0,0.00040968,14]
[354455529,1740514249594,-315.0,0.00040968,14]
[354455530,1740514249604,-349.0,0.00040968,14]
[354455531,1740514249613,-315.0,0.00040968,14]
[354455532,1740514249623,-349.0,0.00040968,14]
[354455533,1740514249632,-315.0,0.00040968,14]
[354455534,1740514249641,-349.0,0.00040968,14]
[354455535,1740514249654,-315.0,0.00040968,14]
[354455536,1740514249664,-349.0,0.00040968,14]
[354455537,1740514249673,-349.0,0.00040968,14]
[354455538,1740514249683,-315.0,0.00040968,14]
[354455539,1740514249692,-349.0,0.00040968,14]
[354455540,1740514249702,-315.0,0.00040968,14]
[354455541,1740514249711,-349.0,0.00040968,14]
[354455542,1740514249721,-315.0,0.00040968,14]
[354455543,1740514249730,-349.0,0.00040968,14]
[354455544,1740514249739,-315.0,0.00040968,14]
[354455545,1740514249748,-349.0,0.00040968,14]
[354455546,1740514249758,-315.0,0.00040968,14]
[354455547,1740514249767,-349.0,0.00040968,14]
[354455548,1740514249777,-315.0,0.00040968,14]
[354455549,1740514249786,-349.0,0.00040968,14]
[354455550,1740514249795,-315.0,0.00040968,14]
[354455551,1740514249805,-349.0,0.00040968,14]
[354455552,1740514249815,-315.0,0.00040968,14]
[354455553,1740514249824,-349.0,0.00040968,14]
[354455554,1740514249834,-315.0,0.00040968,14]
[354455555,1740514249844,-349.0,0.00040968,14]
[354455556,1740514249853,-349.0,0.00040968,14]
[354455557,1740514249863,-349.0,0.00040968,14]
[354455558,1740514249872,-349.0,0.00040968,14]
[354455559,1740514249881,-315.0,0.00040968,14]
[354455560,1740514249891,-349.0,0.00040968,14]
[354455561,1740514249902,-315.0,0.00040968,14]
[354455562,1740514249911,-349.0,0.00040968,14]
[354455563,1740514249921,-315.0,0.00040968,14]
[354455564,1740514249937,-349.0,0.00040968,14]
[354455565,1740514249946,-315.0,0.00040968,14]
[354455566,1740514249957,-349.0,0.00040968,14]
[354455567,1740514249967,-315.0,0.00040968,14]
[354455568,1740514249977,-349.0,0.00040968,14]
[354455569,1740514249987,-315.0,0.00040968,14]
[354455570,1740514249997,-349.0,0.00040968,14]
[354455571,1740514250008,-315.0,0.00040968,14]
[354455572,1740514250021,-451.02595286,0.00040968,14]
[354455573,1740514250031,-315.0,0.00040968,14]
[354455574,1740514250040,-349.0,0.00040968,14]
[354455575,1740514250050,-315.0,0.00040968,14]
[354455576,1740514250059,-315.0,0.00040968,14]
[354455577,1740514250070,-315.0,0.00040968,14]
[354455578,1740514250081,-315.0,0.00040968,14]
[354455579,1740514250091,-315.0,0.00040968,14]
[354455580,1740514250101,-315.0,0.00040968,14]
[354455581,1740514250112,-315.0,0.00040968,14]
[354455582,1740514250122,-315.0,0.00040968,14]
[354455583,1740514250132,-315.0,0.00040968,14]
[354455584,1740514250145,-315.0,0.00040968,14]
[354455585,1740514250160,-268.49389301,0.00040968,14]
[354455586,1740514250172,-315.0,0.00040968,14]
[354455587,1740514250182,-151.0,0.00040973,14]
[354455588,1740514250194,-151.0,0.00040973,14]
[354455589,1740514250204,-151.0,0.00040973,14]
[354455590,1740514250214,-151.0,0.00040973,14]
[354455591,1740514250225,-167.0,0.00040973,14]
[354455592,1740514250234,-299.55041748,0.00040973,14]
[354455593,1740514250243,-349.0,0.00040973,14]
[354455594,1740514250253,-349.0,0.00040973,14]
[354455595,1740514250262,-349.0,0.00040973,14]
[354455596,1740514250272,-349.0,0.00040973,14]
[354455597,1740514250282,-1381.25454253,0.0004099,4]
[354455598,1740514250292,-198.537856,0.00040999,14]
[354455599,1740514250301,-151.0,0.00040999,14]
[354455600,1740514250311,-151.0,0.00040999,14]
[354455601,1740514250321,-36338.21906455,0.00040999,5]
[354455602,1740514250331,-5777.68134721,0.00040999,5]
[354455603,1740514250341,-2000.0,0.00041,120]
[354455604,1740514250352,-1000.0,0.00041,120]
[354455605,1740514250363,-250.0,0.00041,2]
[354455606,1740514250372,-50000.0,0.00041,30]
[354455607,1740514250382,-906.0,0.00041,14]
[354455608,1740514250392,-151.0,0.00041,14]
[354455609,1740514250404,-151.0,0.00041,14]
[354455610,1740514250414,-151.0,0.00041,14]
[354455611,1740514250423,-224.815332,0.00041,14]
[354455612,1740514250433,-224.815332,0.00041,14]
[354455613,1740514250442,-151.0,0.00041,14]
[354455614,1740514250451,-151.0,0.00041,14]
[354455615,1740514250460,-1309.055558,0.00041,14]
[354455616,1740514250470,-1309.055558,0.00041,14]
[354455617,1740514250479,-151.0,0.00041,14]
[354455618,1740514250491,-5000.0,0.00041016,50]
[354455619,1740514250504,-151.0,0.00041016,14]
[354455620,1740514250518,-151.0,0.00041016,14]
[354455621,1740514250530,-234.995626,0.00041016,14]
[354455622,1740514250543,-234.995626,0.00041016,14]
[354455623,1740514250552,-151.0,0.00041016,14]
[354455624,1740514250562,-151.0,0.00041016,14]
[354455625,1740514250572,-753.12622743,0.00041017,2]
[354455626,1740514250581,-151.0,0.00041023,14]
[354455627,1740514250591,-151.0,0.00041023,14]
[354455628,1740514250600,-151.0,0.00041023,14]
[354455629,1740514250760,-500.0,0.00041023,92]
[354455630,1740514250771,-1000.0,0.00041044,2]
[354455631,1740514250781,-2000.0,0.00041056,30]
[354455632,1740514250791,-151.0,0.00041056,14]
[354455633,1740514250801,-151.0,0.00041056,14]
[354455634,1740514250811,-151.0,0.00041056,14]
[354455635,1740514250820,-151.0,0.00041056,14]
[354455636,1740514250830,-151.0,0.00041056,14]
[354455637,1740514250839,-284.0,0.00041056,14]
[354455638,1740514250849,-1500.0,0.00041077,30]
[354455639,1740514250859,-151.0,0.00041077,14]
[354455640,1740514250868,-151.0,0.00041077,14]
[354455641,1740514250878,-1309.055558,0.00041077,14]
[354455642,1740514250887,-1309.055558,0.00041077,14]
[354455643,1740514250897,-1381.25454253,0.00041085,4]
[354455644,1740514250908,-151.0,0.00041095,14]
[354455645,1740514250917,-151.0,0.00041095,14]
[354455646,1740514250926,-180.193397,0.00041095,14]
[354455647,1740514250935,-151.0,0.00041095,14]
[354455648,1740514250945,-151.0,0.00041095,14]
[354455649,1740514250954,-151.0,0.00041095,14]
[354455650,1740514250965,-151.0,0.00041095,14]
[354455651,1740514250974,-262.578729,0.00041095,14]
[354455652,1740514250984,-500.0,0.00041095,50]
[354455653,1740514250993,-151.0,0.00041095,14]
[354455654,1740514251003,-151.0,0.00041095,14]
[354455655,1740514251013,-234.995626,0.00041095,14]
[354455656,1740514251022,-234.995626,0.00041095,14]
[354455657,1740514251032,-500.0,0.00041095,120]
[354455658,1740514251041,-500.0,0.00041095,120]
[354455659,1740514251050,-151.0,0.00041095,14]
[354455660,1740514251060,-151.0,0.00041095,14]
[354455661,1740514251070,-963.0,0.00041095,50]
[354455662,1740514251079,-151.0,0.00041095,14]
[354455663,1740514251089,-151.0,0.00041095,14]
[354455664,1740514251098,-500.0,0.00041095,50]
[354455665,1740514251108,-151.0,0.00041095,14]
[354455666,1740514251117,-151.0,0.00041095,14]
[354455667,1740514251127,-225.042942,0.00041095,14]
[354455668,1740514251138,-224.815332,0.00041095,14]
[354455669,1740514251149,-224.815332,0.00041095,14]
[354455670,1740514251159,-224.815332,0.00041095,14]
[354455671,1740514251169,-224.815332,0.00041095,14]
[354455672,1740514251178,-14361.85,0.00041095,120]
[354455673,1740514251187,-500.0,0.00041095,50]
[354455674,1740514251197,-901.0,0.00041095,50]
[354455675,1740514251206,-164.55947436,0.00041095,50]
[354455676,1740514251215,-205.11463303,0.00041095,50]
[354455677,1740514251225,-500.0,0.00041095,50]
[354455678,1740514251235,-150.3,0.00041095,50]
[354455679,1740514251244,-500.0,0.00041095,50]
[354455680,1740514251253,-150.3,0.00041095,50]
[354455681,1740514251263,-500.0,0.00041095,50]
[354455682,1740514251272,-150.3,0.00041095,2]
[354455683,1740514251282,-500.0,0.00041095,50]
[354455684,1740514251291,-150.3,0.00041095,2]
[354455685,1740514251300,-150.3,0.00041095,50]
[354455686,1740514251310,-151.0,0.00041095,14]
[354455687,1740514251319,-500.0,0.00041095,50]
[354455688,1740514251328,-151.0,0.00041095,14]
[354455689,1740514251338,-500.0,0.00041095,50]
[354455690,1740514251348,-1309.055558,0.00041095,14]
[354455691,1740514251357,-500.0,0.00041095,50]
[354455692,1740514251368,-150.3,0.00041095,2]
[354455693,1740514251377,-1309.055558,0.00041095,14]
[354455694,1740514251387,-500.0,0.00041095,50]
[354455695,1740514251396,-150.3,0.00041095,2]
[354455696,1740514251406,-500.0,0.00041095,50]
[354455697,1740514251415,-500.0,0.00041095,50]
[354455698,1740514251425,-151.0,0.00041095,14]
[354455699,1740514251434,-225.799543,0.00041095,14]
[354455700,1740514251444,-1000.0,0.00041096,10]
[354455701,1740514251454,-1000.0,0.000411,120]
[354455702,1740514251463,-247.80084234,0.00041107,9]
[354455703,1740514251472,-247.859289,0.00041107,120]
[354455704,1740514251482,-151.0,0.00041107,120]
[354455705,1740514251492,-151.0,0.00041107,120]
[354455706,1740514251501,-151.0,0.00041107,120]
[354455707,1740514251511,-151.0,0.00041107,3]
[354455708,1740514251520,-151.0,0.00041107,120]
[354455709,1740514251529,-151.0,0.00041107,120]
[354455710,1740514251538,-151.0,0.00041107,120]
[354455711,1740514251547,-151.0,0.00041107,120]
[354455712,1740514251556,-151.0,0.00041107,120]
[354455713,1740514251566,-151.0,0.00041107,120]
[354455714,1740514251575,-288.985024,0.00041107,120]
[354455715,1740514251584,-151.0,0.00041107,120]
[354455716,1740514251594,-151.0,0.00041107,120]
[354455717,1740514251603,-151.0,0.00041107,30]
[354455718,1740514251612,-178.035038,0.00041107,30]
[354455719,1740514251622,-151.0,0.00041107,120]
[354455720,1740514251631,-264.845473,0.00041107,120]
[354455721,1740514251641,-234.995626,0.00041107,120]
[354455722,1740514251651,-234.995626,0.00041107,120]
[354455723,1740514251661,-234.995626,0.00041107,120]
[354455724,1740514251671,-234.995626,0.00041107,120]
[354455725,1740514251680,-234.995626,0.00041107,120]
[354455726,1740514251690,-234.995621,0.00041107,120]
[354455727,1740514251699,-151.0,0.00041107,120]
[354455728,1740514251709,-151.0,0.00041107,120]
[354455729,1740514251719,-151.0,0.00041107,120]
[354455730,1740514251728,-151.0,0.00041107,120]
[354455731,1740514251738,-217.191177,0.00041107,120]
[354455732,1740514251747,-151.0,0.00041107,120]
[354455733,1740514251756,-151.0,0.00041107,120]
[354455734,1740514251766,-151.0,0.00041107,120]
[354455735,1740514251775,-151.0,0.00041107,120]
[354455736,1740514251786,-224.815332,0.00041107,120]
[354455737,1740514251795,-224.815332,0.00041107,120]
[354455738,1740514251804,-224.815332,0.00041107,120]
[354455739,1740514251814,-224.81533385,0.00041107,120]
[354455740,1740514251824,-151.0,0.00041107,120]
[354455741,1740514251834,-151.0,0.00041107,120]
[354455742,1740514251844,-151.0,0.00041107,120]
[354455743,1740514251853,-243.24771,0.00041107,120]
[354455744,1740514251863,-1309.055558,0.00041107,120]
[354455745,1740514251873,-1309.055558,0.00041107,120]
[354455746,1740514251883,-1309.055558,0.00041107,120]
[354455747,1740514251892,-1309.055558,0.00041107,120]
[354455748,1740514251903,-1309.055558,0.00041107,120]
[354455749,1740514251912,-1309.055565,0.00041107,120]
[354455750,1740514251921,-4923.98187809,0.00041107,2]
[354455751,1740514251931,-3050.79066193,0.00041107,2]
[354455752,1740514251940,-90119.85067539,0.00041107,2]
[354455753,1740514251950,-251.87329101,0.00041107,2]
[354455754,1740514251959,-234.09663534,0.00041107,10]
[354455755,1740514251970,-293.47940121,0.00041107,2]
[354455756,1740514251980,-812.86587139,0.00041107,2]
[354455757,1740514251989,-1640.85235381,0.00041107,2]
[354455758,1740514251998,-323.26482693,0.00041107,2]
[354455759,1740514252008,-1195.55448012,0.00041107,2]
[354455760,1740514252017,-288.50597385,0.00041107,2]
[354455761,1740514252026,-51112.3333737,0.00041107,2]
[354455762,1740514252036,-355.18812482,0.00041107,2]
[354455763,1740514252046,-4157.34042716,0.00041107,2]
[354455764,1740514252055,-154.65482288,0.00041107,2]
[354455765,1740514252064,-10186.31352409,0.00041107,2]
[354455766,1740514252074,-3006.08337493,0.00041107,2]
[354455767,1740514252083,-6221.53900062,0.00041107,2]
[354455768,1740514252092,-155.7618212,0.00041107,2]
[354455769,1740514252102,-520.45518104,0.00041107,2]
[354455770,1740514252111,-1694.98361273,0.00041107,2]
[354455771,1740514252121,-440.99385897,0.00041107,2]
[354455772,1740514252130,-1847.84284311,0.00041107,2]
[354455773,1740514252140,-200.0,0.00041107,10]
[354455774,1740514252153,-501.89752375,0.00041107,2]
[354455775,1740514252162,-13624.62099372,0.00041107,2]
[354455776,1740514252172,-151.18713376,0.00041107,2]
[354455777,1740514252181,-300.00723537,0.00041107,2]
[354455778,1740514252191,-1382.13770139,0.00041107,2]
[354455779,1740514252201,-580.63546965,0.00041107,2]
[354455780,1740514252211,-5826.23995912,0.00041107,2]
[354455781,1740514252220,-15674.96776758,0.00041107,2]
[354455782,1740514252230,-9059.06110012,0.00041107,2]
[354455783,1740514252240,-501.96176886,0.00041107,2]
[354455784,1740514252249,-882.76686012,0.00041107,2]
[354455785,1740514252260,-3915.80964882,0.00041107,2]
[354455786,1740514252269,-4000.01,0.00041107,2]
[354455787,1740514252279,-500.0,0.00041117,120]
[354455788,1740514252288,-500.0,0.00041117,120]
[354455789,1740514252298,-500.39454853,0.00041117,120]
[354455790,1740514252307,-198.1564982,0.00041173,10]
[354455791,1740514252316,-500.0,0.00041223,120]
[354455792,1740514252326,-500.0,0.00041323,99]
[354455793,1740514252335,-963.0,0.00041369,50]
[354455794,1740514252344,-500.0,0.00041369,50]
[354455795,1740514252353,-500.0,0.00041369,50]
[354455796,1740514252363,-901.0,0.00041369,50]
[354455797,1740514252372,-500.0,0.00041369,50]
[354455798,1740514252381,-150.3,0.00041369,50]
[354455799,1740514252390,-500.0,0.00041369,50]
[354455800,1740514252400,-150.3,0.00041369,50]
[354455801,1740514252410,-500.0,0.00041369,50]
[354455802,1740514252419,-939.5009577,0.00041369,50]
[354455803,1740514252429,-150.3,0.00041369,50]
[354455804,1740514252438,-500.0,0.00041369,50]
[354455805,1740514252448,-500.0,0.00041369,50]
[354455806,1740514252458,-650.51702018,0.00041369,50]
[354455807,1740514252467,-500.0,0.00041369,50]
[354455808,1740514252476,-500.0,0.00041369,50]
[354455809,1740514252486,-500.0,0.00041369,50]
[354455810,1740514252496,-500.0,0.00041369,52]
[354455811,1740514252505,-500.0,0.00041423,8]
[354455812,1740514252515,-150.0,0.00041473,10]
[354455813,1740514252524,-1381.25454253,0.0004149,4]
[354455814,1740514252533,-12599.19869396,0.000415,30]
[354455815,1740514253007,-14411.60130604,0.000415,30]
[354455816,1740514253017,-500.0,0.00041623,53]
[354455817,1740514253027,-963.0,0.00041643,50]
[354455818,1740514253036,-500.0,0.00041643,50]
[354455819,1740514253046,-500.0,0.00041643,50]
[354455820,1740514253055,-901.0,0.00041643,50]
[354455821,1740514253065,-500.0,0.00041643,50]
[354455822,1740514253074,-150.3,0.00041643,50]
[354455823,1740514253085,-520.95863708,0.00041643,50]
[354455824,1740514253094,-150.3,0.00041643,50]
[354455825,1740514253104,-500.0,0.00041643,50]
[354455826,1740514253113,-150.3,0.00041643,50]
[354455827,1740514253122,-500.0,0.00041643,50]
[354455828,1740514253131,-500.0,0.00041643,50]
[354455829,1740514253141,-500.0,0.00041643,50]
[354455830,1740514253155,-500.0,0.00041643,50]
[354455831,1740514253165,-500.0,0.00041643,50]
[354455832,1740514253174,-500.0,0.00041643,54]
[354455833,1740514253183,-623.0,0.000418,30]
[354455834,1740514253193,-150.0,0.00041808,2]
[354455835,1740514253202,-150.0,0.00041808,2]
[354455836,1740514253212,-150.0,0.00041808,2]
[354455837,1740514253221,-150.0,0.00041808,2]
[354455838,1740514253231,-150.0,0.00041808,2]
[354455839,1740514253240,-150.0,0.00041808,2]
[354455840,1740514253250,-538.0,0.00041808,2]
[354455841,1740514253259,-1964.0,0.00041808,2]
[354455842,1740514253269,-2283.0,0.00041808,2]
[354455843,1740514253278,-396.0,0.00041808,2]
[354455844,1740514253287,-500.0,0.00041823,6]
[354455845,1740514253296,-963.0,0.00041917,50]
[354455846,1740514253306,-500.0,0.00041917,50]
[354455847,1740514253316,-500.0,0.00041917,50]
[354455848,1740514253325,-901.0,0.00041917,50]
[354455849,1740514253334,-500.0,0.00041917,50]
[354455850,1740514253344,-150.3,0.00041917,50]
[354455851,1740514253353,-150.3,0.00041917,50]
[354455852,1740514253362,-500.0,0.00041917,50]
[354455853,1740514253371,-218.30955018,0.00041917,50]